Cogmind - Beta 17 @@@ ROGUE MODE // 2026.07.14 @ 02:54:38 Player: ChCbias Result: Destroyed by P-60 Hacker with Shock Rifle Performance ------------- Evolutions (4) 2000 Regions Visited (7) 1400 Robots Destroyed (60) 300 Value Destroyed (2187) 2187 Prototype IDs (3) 60 Alien Tech Used (0) 0 Bonus (0) 0 TOTAL SCORE: 5947 Bonus ------- None Cogmind --------- Core Integrity 0/850 Matter 251/300 Energy 140/150 System Corruption 28% Temperature Cool (4) Movement Treading (145) Location -6/Factory Parts ------- > --- POWER (1) -------- Micro Nuclear Core > --- PROPULSION (4) --- Advanced Medium Treads Advanced Medium Treads > --- UTILITY (7) ------ Improved Heat Sink Enhanced Optical Array Core Analyzer Hacking Suite Hacking Suite > --- WEAPON (3) ------- Improved Spread Laser Falx > --- INVENTORY (5) ---- Improved Cryofiber Web Improved Heat Sink Peak State ------------ > --- POWER ------------ Light Angular Momentum Engine > --- PROPULSION ------- Improved Medium Treads Flexi-carbon Leg Improved VSS Leg Improved VSS Leg > --- UTILITY ---------- Advanced Heat Sink Advanced Heat Sink Improved Trap Scanner Enhanced Optical Array Core Analyzer Hacking Suite Hacking Suite > --- WEAPON ----------- Heavy Laser Heavy Plasma Cannon Heavy Machine Gun > --- INVENTORY -------- Coolant Injector Phase Cannon Magnetic Acceleration Cannon Shock Bomb Launcher Falx [Rating: 71] Favorites ----------- Power Nuclear Core Engine Light Ion Engine Power Core Nuclear Core Propulsion Light Treads Treads Light Treads Leg Improved VSS Leg Wheel Compact Wheel Flight Unit Impulse Thruster Array Utility Large Storage Unit Device Improved Terrain Scanner Storage Large Storage Unit Processor Improved Targeting Computer Hackware Hacking Suite Protection Powered Armor Weapon Advanced Assault Cannon Energy Gun Heavy Laser Energy Cannon Heavy Plasma Cannon Ballistic Gun Heavy Machine Gun Ballistic Cannon Advanced Assault Cannon Launcher Grenade Launcher Impact Weapon Hammer Slashing Weapon Falx Build | -11 -10 -10 -8 -7 -6 -6 -6 ------- Run | Yrd Mat Sub Mat Fac Fac Was Fac Slots Evolved 8 | . . . 4 2 2 . . Power . | . . . . . . . . Propulsion 2 | . . . 1 . 1 . . Utility 5 | . . . 3 1 1 . . Weapon 1 | . . . . 1 . . . Parts Attached 92 | 6 4 3 20 6 11 5 37 Power 7 | 1 . 1 2 1 . . 2 Engine 4 | 1 . 1 1 . . . 1 Core 3 | . . . 1 1 . . 1 Reactor . | . . . . . . . . Propulsion 26 | 2 . . 5 2 5 1 11 Treads 15 | 2 . . 5 2 1 . 5 Leg 8 | . . . . . 4 . 4 Wheel 2 | . . . . . . . 2 Hover . | . . . . . . . . Flight 1 | . . . . . . 1 . Utility 32 | 1 1 . 10 2 3 . 15 Device 17 | . 1 . 5 2 2 . 7 Storage 4 | 1 . . 2 . . . 1 Processor 4 | . . . 2 . . . 2 Hackware 2 | . . . . . . . 2 Protection 5 | . . . 1 . 1 . 3 Artifact . | . . . . . . . . Weapon 27 | 2 3 2 3 1 3 4 9 Energy Gun 7 | 1 2 . . . . . 4 Energy Cannon 3 | . . . 1 . . . 2 Ballistic Gun 7 | 1 . 1 . . . 4 1 Ballistic Cannon 4 | . . . 2 1 . . 1 Launcher 2 | . . 1 . . . . 1 Special Weapon . | . . . . . . . . Impact Weapon 1 | . 1 . . . . . . Slashing Weapon 3 | . . . . . 3 . . Piercing Weapon . | . . . . . . . . Special Melee Weapon . | . . . . . . . . Unidentified Prototypes 1 | . . . . . . . 1 Corrupted Parts 1 | . . . . . . 1 . System Corruption 8 | . . . . . . 8 . Parts Lost 25 | . . . 1 . . 7 17 Power . | . . . . . . . . Propulsion 8 | . . . 1 . . 2 5 Utility 9 | . . . . . . 3 6 Weapon 8 | . . . . . . 2 6 Highest Loss Streak 10 | . . . 1 . . 7 10 To Critical Strikes . | . . . . . . . . Average Backups 9 | 3 7 8 11 13 13 10 3 Power 1 | . 1 1 1 2 2 1 . Propulsion 1 | 2 3 2 2 3 1 . . Utility 2 | . . 1 3 4 4 4 1 Weapon 3 | . 2 4 4 3 4 4 2 Tool/Special . | . . . . . . . . Unused Backups 22 | . 2 1 3 1 4 6 5 Power 3 | . . . . . . 2 1 Propulsion 6 | . 2 1 2 . . . 1 Utility 6 | . . . . . . 3 3 Weapon 6 | . . . 1 . 4 1 . Tool/Special 1 | . . . . 1 . . . Average Slot Usage (%) 90 | . 94 100 93 99 99 59 76 Engine 3 | . 14 14 3 . . . 2 Core 3 | . . . 4 7 6 3 1 Treads 18 | . 28 28 24 23 20 . 7 Leg 4 | . . . . . 5 14 9 Device 15 | . 8 14 22 15 19 11 12 Storage 6 | . 14 14 9 7 6 4 . Processor 10 | . . . 9 15 13 9 12 Hackware 3 | . . . . . . . 10 Protection 3 | . . . 1 7 6 3 2 Energy Gun 3 | . 14 11 . . . . 2 Energy Cannon 1 | . . . . . . . 3 Ballistic Gun 3 | . 13 10 . . . 9 3 Ballistic Cannon 9 | . . . 14 22 16 . . Slashing Weapon 1 | . . . . . 3 2 2 Peak Build Rating 71 | 6 8 10 29 38 65 65 71 Average Rating 35 | 5 6 8 23 37 45 37 55 On Entrance 21 | . 6 8 10 28 36 65 17 Avg Prop Armor Cover (%) 10 | . . . . . 4 22 10 Naked Turns 49 | . . . . . . 49 . Heaviest Build 72 | 11 14 18 48 57 72 56 44 Greatest Support 90 | 40 40 40 60 60 80 63 90 Greatest Overweight (x) 2 | . . . . . 1 2 1 Average Overweight (x) . | . . . . . . . . Largest Inventory Capacity 15 | 8 8 8 15 15 15 15 5 Average Capacity 10 | 6 8 8 14 15 15 11 5 Most Carried 15 | 6 8 8 15 15 15 15 5 Average Carried 9 | 4 7 7 12 14 14 11 4 Final Capacity 15 | 8 8 8 15 15 15 5 5 Final Carried 15 | 6 8 8 15 15 14 5 2 Class Distribution -------------------- 49% | Mutant 17% | Skirmisher 13% | Scavenger-Gunner 8% | Scavenger-Skirmisher 5% | Hacker-Mutant Dominant Class ---------------- Mutant | -10/Materials Mutant | -10/Subcaves Mutant | -8/Materials Skirmisher | -7/Factory Scavenger-Skirmisher | -6/Factory Tank | -6/Waste Scavenger-Gunner | -6/Factory Resources | -11 -10 -10 -8 -7 -6 -6 -6 ----------- Run | Yrd Mat Sub Mat Fac Fac Was Fac Matter Collected 2716 | 256 63 77 445 662 141 219 853 Remotely 463 | . . . . 322 141 . . Salvage Created 2537 | 9 162 139 364 510 133 219 1001 Parts 121 | 2 8 13 32 19 6 4 37 Haulers Intercepted 5 | . . . 3 1 1 . . Recyclers Shooed 2 | . . . 1 . . . 1 Parts Field Recycled . | . . . . . . . . Retrieved Matter . | . . . . . . . . Parts Self-Destructed . | . . . . . . . . Prevented . | . . . . . . . . Parts Restored . | . . . . . . . . Kills | -11 -10 -10 -8 -7 -6 -6 -6 ------- Run | Yrd Mat Sub Mat Fac Fac Was Fac Combat Hostiles Destroyed 44 | . 4 4 9 11 . 1 15 Melee 6 | . . . . . . . 6 Guns 10 | . 4 2 . . . 1 3 Cannons 21 | . . . 6 11 . . 4 AOE 6 | . . 2 3 . . . 1 Classes Destroyed 15 | 1 1 1 4 4 1 1 2 Worker 1 | 1 . . . . . . . Builder 1 | . . . 1 . . . . Tunneler 1 | . . . . . . . 1 Hauler 5 | . . . 3 1 1 . . Recycler 5 | . . . . 4 . . 1 Operator 1 | . . . . 1 . . . Watcher 2 | . . . . . 2 . . Swarmer 6 | . . . 4 2 . . . Grunt 25 | . 4 . 3 6 . . 12 Sentry 2 | . . . 2 . . . . Hunter 1 | . . . . 1 . . . Programmer 4 | . . . . 2 . . 2 Behemoth 1 | . . . . . . . 1 Compactor 1 | . . . . . . 1 . Subdweller 4 | . . 4 . . . . . Best Kill Streak 7 | 1 2 3 5 4 1 1 7 Combat Bots Only 7 | . 2 3 3 3 . 1 7 Max Kills in Single Turn 3 | 1 1 2 3 1 1 1 2 Gunslinging . | . . . . . . . . Exploded 2 | . . 2 2 . . . 1 Melee 1 | . . . . . . . 1 Uniques/NPCs Destroyed . | . . . . . . . . Combat | -11 -10 -10 -8 -7 -6 -6 -6 -------- Run | Yrd Mat Sub Mat Fac Fac Was Fac Hostile Shots Fired 378 | . 14 14 44 46 . 10 250 Missed 112 | . 3 2 12 18 . 2 75 Hits 266 | . 11 12 32 28 . 8 175 Melee 8 | . . . . . . 8 . Projectile 258 | . 11 12 32 28 . . 175 AOE 4 | . . . . . . . 4 Critical Strikes 8 | . . 1 . 1 . 3 3 Part Disruptions 1 | . . . . 1 . . . Damage Taken 5309 | . 143 253 504 447 83 397 3482 Core 1001 | . 12 45 33 56 . 252 603 Absorbed by Shields . | . . . . . . . . Redirected to Shielding 43 | . . . . . . . 43 Core Remaining (%) 90 | 100 . 77 94 92 . . . Volleys Fired 134 | . 13 10 24 39 2 15 31 Largest 3 | . 2 2 2 3 3 3 3 Hottest 211 | . 85 95 110 120 120 90 211 Shots Fired 321 | . 26 19 47 115 6 40 68 Gun 129 | . 26 17 1 . . 40 45 Cannon 187 | . . . 44 115 6 . 22 Launcher 5 | . . 2 2 . . . 1 Special . | . . . . . . . . Kinetic 254 | . 13 7 42 115 6 40 31 Thermal 62 | . 13 10 3 . . . 36 Explosive 4 | . . 2 2 . . . . Electromagnetic 1 | . . . . . . . 1 Robot Hit Streak 18 | . 9 6 8 7 9 9 18 Robot Miss Streak 4 | . 2 2 3 4 1 2 2 Penetration Max . | . . . . . . . . Secondary Targets 2 | . 2 . . . . . . Max Gunslinging Chain 1 | . 1 . . . . . . Shots Hit Robots 234 | . 19 15 28 69 5 30 68 Core Hits 107 | . 8 8 18 22 3 6 42 Critical Kills 1 | . . . . . . 1 . Critical Parts Destroyed 1 | . 1 . . . . . . Critical Strikes 19 | . 2 1 4 4 . 1 7 Burn 4 | . 1 1 . . . . 2 Destroy 2 | . 1 . . . . 1 . Blast 9 | . . . 4 4 . . 1 Sever 4 | . . . . . . . 4 Melee Attacks 31 | . 3 . . . 3 2 23 Impact 3 | . 3 . . . . . . Slashing 28 | . . . . . 3 2 23 Piercing . | . . . . . . . . Sneak Attacks 2 | . . . . . 1 . 1 Combat Hostiles . | . . . . . . . . Follow-up Attacks 1 | . . . . . 1 . . Damage Inflicted 6359 | 6 259 258 814 1767 219 653 2383 Guns 1859 | . 255 200 16 . . 611 777 Cannons 3013 | . . . 690 1754 77 . 492 Explosions 510 | . . 58 108 . . . 344 Melee 923 | . . . . . 142 42 739 Ramming 54 | 6 4 . . 13 . . 31 Kinetic 3913 | . 130 77 656 1754 77 611 608 Thermal 980 | . 125 123 50 . . . 682 Explosive 489 | . . 58 108 . . . 323 Electromagnetic . | . . . . . . . . Impact . | . . . . . . . . Slashing 923 | . . . . . 142 42 739 Piercing . | . . . . . . . . Highest Corruption 28 | . . . . 1 2 24 28 Average Corruption 17 | . . . . 1 2 14 25 Corruption Purged . | . . . . . . . . Corruption Blocked . | . . . . . . . . Effects 97 | . . . . . 6 13 78 Message Errors 24 | . . . . . 2 2 20 Matter Fused 19 | . . . . . 1 2 16 Heat Flow Errors 10 | . . . . . . 2 8 Energy Discharges 12 | . . . . . 2 1 9 Parts Rejected 3 | . . . . . . 1 2 Parts Fused 1 | . . . . . . . 1 Data Loss (minor) 8 | . . . . . 1 . 7 Data Loss (major) 3 | . . . . . . . 3 Misfires 2 | . . . . . . . 2 Alerts 1 | . . . . . . . 1 Misdirections 9 | . . . . . . 5 4 Weapon Failures 5 | . . . . . . . 5 Overload Shots . | . . . . . . . . Overflow Damage 260 | . . . 15 77 26 . 142 Projectiles 99 | . . . 15 77 . . 7 Explosions 110 | . . . . . . . 110 Melee 51 | . . . . . 26 . 25 Knockbacks 34 | . . . 5 25 1 . 3 Impact 1 | . . . . 1 . . . Kinetic 30 | . . . 5 22 1 . 2 Secondary 3 | . . . . 2 . . 1 Self-Inflicted Damage 221 | . . . . . . . 221 Shots 2 | . . . . . . . 2 Rammed 9 | 1 1 . 1 1 . . 5 Targets Rammed 11 | 2 1 . 1 2 . . 5 Kicked . | . . . . . . . . Crushed 2 | 1 . . . 1 . . . Highest Temperature 250 | . 36 . 4 60 3 250 243 Average Temperature 41 | . 23 . 2 15 2 42 75 Received Heat Transfer 1368 | . 78 48 234 144 . . 864 Siege Activations . | . . . . . . . . Martial Activations . | . . . . . . . . Shielding Activations . | . . . . . . . . Robots Disrupted . | . . . . . . . . Combat Hostiles . | . . . . . . . . Robots Corrupted . | . . . . . . . . Combat Hostiles . | . . . . . . . . Parts Fried . | . . . . . . . . Impact Corruptions . | . . . . . . . . Robots Melted 1 | . . . . . . . 1 Combat Hostiles 1 | . . . . . . . 1 Parts Melted 5 | . . . . . . . 5 Heat Transferred 2027 | . 360 370 74 . . . 1223 Parts Sabotaged . | . . . . . . . . Parts Stolen . | . . . . . . . . Parts Stripped . | . . . . . . . . Power Chain Reactions . | . . . . . . . . Alert | -11 -10 -10 -8 -7 -6 -6 -6 ------- Run | Yrd Mat Sub Mat Fac Fac Was Fac Maximum Alert Level 1 | . . . . 1 . . 1 Low Security (%) 98 | 100 100 . 100 95 100 100 96 Level 1 1 | . . . . 4 . . 3 Level 2 . | . . . . . . . . Level 3 . | . . . . . . . . Level 4 . | . . . . . . . . Level 5 . | . . . . . . . . High Security . | . . . . . . . . Max Security . | . . . . . . . . Peak Influence 285 | 5 50 . 129 212 98 . 285 Initial 98 | . 3 . . 35 98 . . Average 29 | . 13 . 33 32 25 . 37 Influence Increases 1633 | 5 146 . 322 447 45 . 668 Destroy 0b10 Robot/C 780 | . 80 . 180 220 . . 300 Destroy 0b10 Robot/NC 80 | 5 . . 20 30 15 . 10 Destroy Leader 214 | . 20 . 46 72 6 . 70 Successful Hack 102 | . . . . 31 24 . 47 Disable Machine 120 | . . . . 30 . . 90 Destroy Structure 97 | . 1 . 31 19 . . 46 Partial Spotted 15 | . . . . . . . 15 Lose Combat Pursuer 225 | . 45 . 45 45 . . 90 Influence Decreases 1366 | . 135 16 245 324 245 . 401 Entered New Map 154 | . 2 8 . 42 102 . . Time Decay 1042 | . 133 8 235 282 143 . 241 Lost Part 170 | . . . 10 . . . 160 Squads Dispatched 13 | . 2 . . 5 . . 6 Investigation 6 | . 2 . . 1 . . 3 Extermination 4 | . . . . 2 . . 2 Reinforcement 3 | . . . . 2 . . 1 Assault . | . . . . . . . . Garrison . | . . . . . . . . Intercept . | . . . . . . . . Searches Triggered . | . . . . . . . . Construction Impeded 2 | . . . . 1 . . 1 Haulers Reinforced . | . . . . . . . . Active Scanning Responses . | . . . . . . . . Cargo Convoy Interrupts . | . . . . . . . . Stealth | -11 -10 -10 -8 -7 -6 -6 -6 --------- Run | Yrd Mat Sub Mat Fac Fac Was Fac Distress Signals . | . . . . . . . . Communications Jammed . | . . . . . . . . Distress Signals . | . . . . . . . . Times Spotted 79 | . 9 2 14 17 2 5 30 Peak Tracking Total 6 | . 3 1 5 4 1 4 6 Tactical Retreats 10 | . 3 . 2 2 . . 3 Traps | -11 -10 -10 -8 -7 -6 -6 -6 ------- Run | Yrd Mat Sub Mat Fac Fac Was Fac Traps Triggered 5 | . 1 . 1 . 2 . 1 Indirectly . | . . . . . . . . Trap Hack Attempts . | . . . . . . . . Triggered . | . . . . . . . . Disarmed . | . . . . . . . . Reprogrammed . | . . . . . . . . Reused . | . . . . . . . . Traps Extracted . | . . . . . . . . Installed . | . . . . . . . . Triggered . | . . . . . . . . Machines | -11 -10 -10 -8 -7 -6 -6 -6 ---------- Run | Yrd Mat Sub Mat Fac Fac Was Fac Machines Disabled 8 | . . . . 2 . . 6 Max in Single Turn 3 | . . . . 1 . . 3 Machines Repaired . | . . . . . . . . Machines Dismantled . | . . . . . . . . Machines Sabotaged . | . . . . . . . . Overloaded Fab Kills . | . . . . . . . . Hacking | -11 -10 -10 -8 -7 -6 -6 -6 --------- Run | Yrd Mat Sub Mat Fac Fac Was Fac Machines Accessed 25 | . 3 . 4 6 2 . 10 Terminals 13 | . 3 . 2 3 1 . 4 Fabricators 6 | . . . . 2 1 . 3 Repair Stations 2 | . . . 1 . . . 1 Recycling Units 1 | . . . . 1 . . . Scanalyzers 3 | . . . 1 . . . 2 Garrison Access . | . . . . . . . . Total Hacks 56 | . 5 . 12 14 3 . 22 Successful 21 | . 1 . 2 7 2 . 9 Failed 34 | . 4 . 9 7 1 . 13 Catastrophic 4 | . . . 2 2 . . . Database Lockouts 1 | . . . 1 . . . . Manual 20 | . 3 . 8 7 . . 2 Terminals 31 | . 5 . 9 8 2 . 7 Fabricators 13 | . . . . 4 1 . 8 Repair Stations 5 | . . . 1 . . . 4 Recycling Units 2 | . . . . 2 . . . Scanalyzers 5 | . . . 2 . . . 3 Garrison Access . | . . . . . . . . Terminal Hacks 7 | . 1 . 1 3 1 . 1 Record 1 | . . . 1 . . . . Part Schematic 1 | . . . . . . . 1 Prototype ID Bank 1 | . 1 . . . . . . Terminal Index 1 | . . . . 1 . . . Scanalyzer Index 1 | . . . . 1 . . . Locate Traps 2 | . . . . 1 1 . . Fabricator Hacks 6 | . . . . 1 1 . 4 Network Status 3 | . . . . 1 1 . 1 Load Schematic 2 | . . . . . . . 2 Build 1 | . . . . . . . 1 Repair Station Hacks 2 | . . . . . . . 2 Scan Component 1 | . . . . . . . 1 Repair 1 | . . . . . . . 1 Recycling Unit Hacks 1 | . . . . 1 . . . Retrieve Matter 1 | . . . . 1 . . . Scanalyzer 3 | . . . 1 . . . 2 Insert Component 1 | . . . . . . . 1 Retrieve Study 2 | . . . 1 . . . 1 Garrison Access Hacks . | . . . . . . . . Unauthorized Hacks 2 | . . . . 2 . . . Terminals . | . . . . . . . . Fabricators 2 | . . . . 2 . . . Liberate 1 | . . . . 1 . . . Haulers 1 | . . . . 1 . . . Repair Stations . | . . . . . . . . Recycling Units . | . . . . . . . . Scanalyzers . | . . . . . . . . Garrison Access . | . . . . . . . . Data Cores Recovered . | . . . . . . . . Used . | . . . . . . . . Hacking Detections 23 | . 3 . 4 5 1 . 10 Full Trace Events 6 | . 1 . 1 1 . . 3 Feedback Events 1 | . . . . . . . 1 Corruption 1 | . . . . . . . 1 Feedback Blocked . | . . . . . . . . Robot Schematics Acquired . | . . . . . . . . Robots Built . | . . . . . . . . Authchips . | . . . . . . . . Time . | . . . . . . . . Total Robot Build Rating . | . . . . . . . . Part Schematics Acquired 1 | . . . . . . . 1 Parts Built 2 | . . . . . . . 2 Authchips . | . . . . . . . . Time 58 | . . . . . . . 58 Total Part Build Rating 14 | . . . . . . . 14 Part Studies Acquired 1 | . . . . . . . 1 Parts Repaired . | . . . . . . . . Time 50 | . . . . . . . 50 Parts Recycled . | . . . . . . . . Recycled Matter . | . . . . . . . . Retrieved Matter . | . . . . . . . . Retrieved Components . | . . . . . . . . Parts Scanalyzed 1 | . . . . . . . 1 Part Schematics Acquired . | . . . . . . . . Parts Damaged 1 | . . . . . . . 1 Bothacking | -11 -10 -10 -8 -7 -6 -6 -6 ------------ Run | Yrd Mat Sub Mat Fac Fac Was Fac Used RIF Installer . | . . . . . . . . Robots Hacked . | . . . . . . . . Non-combat . | . . . . . . . . Combat . | . . . . . . . . Robot Hacks Applied . | . . . . . . . . Relay Couplers Released . | . . . . . . . . Fabnet Peak Effective % . | . . . . . . . . Robots Rewired . | . . . . . . . . Allies Hacked . | . . . . . . . . Hacks Repelled . | . . . . . . . . Allies | -11 -10 -10 -8 -7 -6 -6 -6 -------- Run | Yrd Mat Sub Mat Fac Fac Was Fac Total Allies . | . . . . . . . . Largest Group . | . . . . . . . . Highest-Rated Group . | . . . . . . . . Highest-Rated Ally . | . . . . . . . . Total Orders . | . . . . . . . . Ally Attacks . | . . . . . . . . Total Damage . | . . . . . . . . Kills . | . . . . . . . . Allies Corrupted . | . . . . . . . . Allies Melted . | . . . . . . . . Intel | -11 -10 -10 -8 -7 -6 -6 -6 ------- Run | Yrd Mat Sub Mat Fac Fac Was Fac Active Infowar (turns) 3620 | . . . 713 875 591 73 1368 Optics 1368 | . . . . . . . 1368 Terrain 2252 | . . . 713 875 591 73 . Traps 850 | . . . . . . . 850 Robot Analysis Total . | . . . . . . . . Derelict Logs Recovered 1 | . . 1 . . . . . Drone Launches . | . . . . . . . . Drone Recoveries . | . . . . . . . . Exploration | -11 -10 -10 -8 -7 -6 -6 -6 ------------- Run | Yrd Mat Sub Mat Fac Fac Was Fac Turns Passed 5085 | 131 478 382 823 1023 592 175 1481 Spaces Moved 2996 | 79 256 211 416 512 340 147 1035 Core 521 | 12 . . . . . 102 407 Treads 2123 | 67 256 211 416 512 263 . 398 Legs 292 | . . . . . 77 45 170 Wheels 60 | . . . . . . . 60 Hover . | . . . . . . . . Flight . | . . . . . . . . Fastest Speed 50 | 50 160 160 160 160 112 50 50 Average Speed 138 | 143 160 160 160 162 157 73 109 Slowest Speed 260 | 160 160 160 160 163 187 260 240 Overloaded Moves . | . . . . . . . . Propulsion Burnouts . | . . . . . . . . Robots Hopped . | . . . . . . . . Potential Cave-ins 2 | . . . . . . . 2 Cave-ins Triggered . | . . . . . . . . Exploration Rate (%) 25 | 5 37 16 28 14 6 80 21 Regions Visited 7 Branch Regions 1 Pre-discovered Areas 1 | . . 1 . . . . . Known Exits Taken . | . . . . . . . . Unknown Exits Taken 5 | 1 1 1 1 1 . . . Scrap Searched . | . . . . . . . . Spaces Dug 6 | . 1 . . . . . 5 Terrain Destroyed 113 | . 1 8 33 13 . 1 57 Melee 5 | . 1 . . . . . 4 Projectile 37 | . . . 16 13 . 1 7 AOE 71 | . . 8 17 . . . 46 Terrain Rammed . | . . . . . . . . Walls Destroyed . | . . . . . . . . Machines Disabled . | . . . . . . . . Actions | -11 -10 -10 -8 -7 -6 -6 -6 --------- Run | Yrd Mat Sub Mat Fac Fac Was Fac Total 3600 | 93 292 237 527 618 390 172 1271 Wait 188 | . 9 8 28 49 5 1 88 Move 2990 | 78 255 210 415 511 340 146 1035 Hop . | . . . . . . . . Pick Up 61 | 7 4 2 14 4 13 1 16 Fast Attach 37 | 5 1 . 8 . . 3 20 Attach 26 | 1 . . 3 2 2 1 17 Detach 11 | . . . 4 . . . 7 Swap 53 | . 3 4 13 5 12 3 13 Drop 54 | . 3 3 17 6 14 . 11 Fire 134 | . 13 10 24 39 2 15 31 Melee 30 | . 3 . . . 2 2 23 Ram 4 | . . . . . . . 4 Kick . | . . . . . . . . Crush 7 | 2 1 . 1 2 . . 1 Escape Stasis 5 | . . . . . . . 5 Rewire . | . . . . . . . . Trap . | . . . . . . . . Miscellaneous . | . . . . . . . . Route ------- -11/Scrapyard -10/Materials -10/Subcaves -8/Materials -7/Factory (discovered 2 exits: *Fac / [*Sto]) -6/Factory -6/Waste -6/Factory History --------- Turn | Location | Event 41 | -11/Scrapyard | Discovered new exit (range 16) 132 | -11/Scrapyard | Entered Materials 304 | -10/Materials | Build established: Mutant 372 | -10/Materials | Discovered new exit (range 15) 610 | -10/Materials | Entered Subcaves 782 | -10/Subcaves | Disturbed a concealed Subdweller 892 | -10/Subcaves | Discovered new exit (range 11) 984 | -10/Subcaves | Learned location of Zion (-7) 992 | -10/Subcaves | Entered Materials 992 | -8/Materials | Evolved 4 slots: Propulsion x1, Utility x3 1113 | -8/Materials | Found Powered Armor 1593 | -8/Materials | Central database locked down 1784 | -8/Materials | Discovered new exit (range 12) 1815 | -8/Materials | Entered Factory 1815 | -7/Factory | Evolved 2 slots: Utility x1, Weapon x1 1817 | -7/Factory | Discovered new exit (range 11) 2136 | -7/Factory | Build established: Skirmisher 2251 | -7/Factory | Discovered new exit (range 15) 2838 | -7/Factory | Entered another Factory area 2838 | -6/Factory | Evolved 2 slots: Propulsion x1, Utility x1 3126 | -6/Factory | Build established: Scavenger-Skirmisher 3430 | -6/Factory | Sucked down chute 3430 | -6/Factory | Entered Waste 3439 | -6/Waste | Spotted C-40 Crusher 3445 | -6/Waste | EMP discharged 3445 | -6/Waste | System corruption reached 10% 3457 | -6/Waste | Destroyed C-40 Crusher 3487 | -6/Waste | Spotted C-40 Crusher 3510 | -6/Waste | Crushed by Compactor (1 part destroyed, 2 dropped) 3524 | -6/Waste | Crushed by Compactor (1 part destroyed, 2 dropped) 3527 | -6/Waste | Crushed by Compactor (1 part destroyed, 1 dropped) 3531 | -6/Waste | Crushed by Compactor (1 part destroyed, 1 dropped) 3541 | -6/Waste | Crushed by Compactor (1 part destroyed, 1 dropped) 3544 | -6/Waste | Crushed by Compactor (1 part destroyed, 1 dropped) 3545 | -6/Waste | EMP discharged 3553 | -6/Waste | Crushed by Compactor (1 part destroyed, 2 dropped) 3564 | -6/Waste | Spotted C-40 Crusher 3566 | -6/Waste | Spotted C-40 Crusher 3584 | -6/Waste | Lost 7 parts (2n3u2w) 3585 | -6/Waste | Spotted C-40 Crusher 3590 | -6/Waste | Discovered new exit (range 16) 3605 | -6/Waste | Entered Factory 3713 | -6/Factory | Spotted B-75 Beast 3863 | -6/Factory | Build established: Mutant 4106 | -6/Factory | Destroyed B-75 Beast 4376 | -6/Factory | Build established: Scavenger-Gunner 4813 | -6/Factory | Core integrity fell below 50% 4910 | -6/Factory | Lost 10 parts (3n3u4w) 5018 | -6/Factory | Core integrity fell below 20% 5022 | -6/Factory | Fabricated Adv. Medium Treads? 5069 | -6/Factory | Destroyed 7 combat bots 5086 | -6/Factory | Destroyed by P-60 Hacker with Shock Rifle Last Messages --------------- 05048_ G-50 Soldier destroyed. 05049_ K-01 Serf collects debris. 05050_ Acquired 101 matter. 05052_ System corrupted: Imp. Spread Laser failed to cycle. 05052_ K-01 Serf cleans the Fabricator. 05055_ Acquired Imp. Heat Sink. 05056_ K-01 Serf collects debris. 05056_ Slug penetrates Fabricator. 05059_ K-01 Serf collects debris. 05065_ Slug penetrates Power Conduit. 05065_ Lyr. Medium Armor Plating destroyed. 05066_ K-01 Serf collects debris. 05069_ System corrupted: Matter fused (-9). 05069_ K-01 Serf collects debris. 05070_ Slug penetrates Power Conduit. 05079_ Slug penetrates Wall. 05084_ System corrupted: Imp. Utility Shielding rejected. 05085_ Penetrated by Slug. Map ----- +----------------------------------------------------+ | ?????????????????????????????????????????????????? | | ?????????????????????????????????????????????????? | | ?????????????????????????????????????????????????? | | ?????????????????????????????????????????????????? | | ?????????????????????????????????????????????????? | | ?????????????????????????????????????????????????? | | ?????????????????????????????????????????????????? | | ?????????????????????????????????????????????????? | | ?????????????????????????????????????????????????? | | ?????????????????????????????????????????????????? | | ?????????????????????????????????????????????????? | | ?????????????????????????????????????????????????? | | ?????????????????????????????????????????????????? | | ???????????????????????????+#????????????????????? | | ??????????????????????????? #????????????????????? | | ??????????????????????????# #????????????????????? | | ??????????????????????????# #????????????????????? | | ????????????????????????### ###????###???????????? | | ????????????????????????# gg #???? ???????????? | | ????????????????????????# #???" ""???????????? | | ????????????????????????+ k #???" "????????????? | | ????????????????????????# +???" "????????????? | | ????????????????????????# #??? ?????????????? | | ????????????????????????# l #??? ?????????????? | | ????????????????????????# ####+#############?? | | ????????????????????????#@ u ? | | ????????????????????????# ?? | | ????????????????????????# ! p " " " " ?? | | ????????????????????????# " " " " ??? | | ????????????????????????# " " " " ???? | | ??????????????????##########;### " " " " #????? | | ??????????????????# # " " " " #????? | | ??????????????????# ! ! # " " " " #????? | | ??????????????????# ] # " " " " #????? | | ??????????????????# """"" # " " " " #????? | | ??????????????????# """"" /h# " " " " #????? | | ??????????????????+ """ + #????? | | ??????????????????# # ="""#????? | | ??????????????????# """"" # *["""#????? | | ??????????????????# """"" # !"#????? | | ??????????????????? """ # %*"F"#????? | | ??????????????????? ] # [ """#????? | | ??????????????????# # #????? | | ??????????????????############## % #????? | | ?????????????????????????????######+#########????? | | ?????????????????????????????# ! %= #??????? | | ?????????????????????????????# * #??????? | | ?????????????????????????????# """ #??????? | | ?????????????????????????????# """"" #??????? | | ?????????????????????????????# """"" #??????? | +----------------------------------------------------+ Best States ------------- Heat Dissipation 75 Energy Generation 18 Energy Capacity 350 Matter Stores 300 Matter Capacity 300 Sight Range 22 Terrain Scan Range 16 Terrain Scan Density 85 Armor Coverage 625 Resistance: KI 30 Utility Shielding 66 Evasion (%) 62 Targeting Accuracy 6 Core Analysis 6 Recoil Reduction 4 Offensive Hacking 20 Item Schematics ----------------- Adv. Medium Treads | -6/Factory | Hacked Robot Schematics ------------------ None Fabricated ------------ Adv. Medium Treads | x2 | -6/Factory Repaired ---------- Nothing Studied --------- Imp. Medium Treads | -6/Factory | Hacked Alien Tech Used ----------------- None Achievements -------------- Sprinter Challenges ------------ None Game ------ Seed PointHackingExtractor Manual? 0 Play Time 01:12:57 Cumulative 51.4 hours Start 2026.07.14 @ 01:28:23 End 2026.07.14 @ 02:54:38 Sessions 1 Manual Loads 0 Difficulty Rogue Special Mode None Game No. 39 Rogue 39 Adventurer 0 Explorer 0 Win Type - Total 1 Types 1/0/0/0/0/0/0/0/0/0 Lore% 42 Gallery% 33 Achievement% 31 Wizard Run 0 Options --------- Layout 1 ASCII 0 Keyboard 1 Movement Arrows Keybinds 0 Fullscreen 1 Font 24/Smallcaps Map View 50x35 Zoom Use 0% Tactical HUD 1 Map Filters NONE Filters NONE Steam 1 RUN: aa9a8c68-5333-4e44-ace9-bba2285761c3